fUSD/lending_fUSD_20260103
["ID","MTS","AMOUNT","RATE_DAILY","PERIOD"]
[400349031,1767409841312,-482.1,0.00040164,2]
[400349032,1767409841322,-660.63,0.00040164,2]
[400349033,1767409841331,-482.1,0.00040164,2]
[400349034,1767409841341,-660.63,0.00040164,2]
[400349035,1767409841351,-169.91,0.00040164,2]
[400349036,1767409841361,-660.63,0.00040164,2]
[400349037,1767409841371,-660.63,0.00040164,2]
[400349038,1767409841380,-660.63,0.00040164,2]
[400349039,1767409841390,-660.63,0.00040164,2]
[400349040,1767409841399,-660.63,0.00040164,2]
[400349041,1767409841409,-660.63,0.00040164,2]
[400349042,1767409841419,-660.63,0.00040164,2]
[400349043,1767409841428,-660.63,0.00040164,2]
[400349044,1767409841439,-211.28,0.00040164,2]
[400349045,1767409841448,-5792.81566624,0.00040198,15]
[400349046,1767409841458,-4320.93,0.00040515,2]
[400349047,1767409841468,-1178.85935984,0.00040565,4]
[400349048,1767409841478,-179.87,0.00040575,2]
[400349049,1767409841489,-554.77,0.00040575,2]
[400349050,1767409841498,-171.11,0.00040575,2]
[400349051,1767409841508,-465.99,0.00040575,2]
[400349052,1767409841518,-178.84,0.00040575,2]
[400349053,1767409841527,-1249.76,0.00040575,2]
[400349054,1767409841538,-1134.25,0.00040575,2]
[400349055,1767409841547,-301.63,0.00040575,2]
[400349056,1767409841557,-211.23,0.00040575,2]
[400349057,1767409841566,-465.99,0.00040575,2]
[400349058,1767409841576,-305.56,0.00040575,2]
[400349059,1767409841585,-171.11,0.00040575,2]
[400349060,1767409841595,-178.84,0.00040575,2]
[400349061,1767409841606,-465.99,0.00040575,2]
[400349062,1767409841615,-171.11,0.00040575,2]
[400349063,1767409841624,-150.0,0.00040575,2]
[400349064,1767409841634,-171.11,0.00040575,2]
[400349065,1767409841643,-178.84,0.00040575,2]
[400349066,1767409841653,-465.99,0.00040575,2]
[400349067,1767409841662,-178.84,0.00040575,2]
[400349068,1767409841673,-171.11,0.00040575,2]
[400349069,1767409841683,-231.91,0.00040575,2]
[400349070,1767409841693,-150.0,0.00040575,2]
[400349071,1767409841702,-150.0,0.00040575,2]
[400349072,1767409841712,-344.54,0.00040575,2]
[400349073,1767409841721,-150.0,0.00040575,2]
[400349074,1767409841730,-150.0,0.00040575,2]
[400349075,1767409841739,-150.0,0.00040575,2]
[400349076,1767409841749,-150.0,0.00040575,2]
[400349077,1767409841758,-150.0,0.00040575,2]
[400349078,1767409841768,-150.0,0.00040575,2]
[400349079,1767409841777,-150.0,0.00040575,2]
[400349080,1767409841787,-150.0,0.00040575,2]
[400349081,1767409841796,-150.0,0.00040575,2]
[400349082,1767409841806,-150.0,0.00040575,2]
[400349083,1767409841815,-150.0,0.00040575,2]
[400349084,1767409841825,-150.0,0.00040575,2]
[400349085,1767409841835,-150.0,0.00040575,2]
[400349086,1767409841844,-150.0,0.00040575,2]
[400349087,1767409841854,-6106.75134539,0.00040685,5]
[400349088,1767409841864,-151.0,0.000407,120]
[400349089,1767409841874,-152.0,0.000407,120]
[400349090,1767409841883,-158.49,0.000407,14]
[400349091,1767409841892,-170.41110007,0.0004089,2]
[400349092,1767409841902,-213.952354,0.00040951,120]
[400349093,1767409841911,-3464.0,0.00040951,2]
[400349094,1767409841925,-1329.0,0.00040951,2]
[400349095,1767409841934,-1178.85935984,0.00040977,4]
[400349096,1767409841944,-433.0,0.00040987,2]
[400349097,1767409841954,-1265.0,0.00040987,2]
[400349098,1767409841965,-2434.0,0.00040991,2]
[400349099,1767409841975,-4814.0,0.00040991,2]
[400349100,1767409841984,-154.93516035,0.00041,30]
[400349101,1767409841995,-600.0,0.00041096,120]
[400349102,1767409842005,-232.0,0.00041096,120]
[400349103,1767409842014,-153.0,0.00041096,30]
[400349104,1767409842024,-307.35709776,0.00041096,2]
[400349105,1767409842034,-2295.0,0.00041096,60]
[400349106,1767409842043,-350.88038146,0.00041096,57]
[400349107,1767409842053,-500.0,0.00041096,31]
[400349108,1767409842062,-500.0,0.00041096,31]
[400349109,1767409842071,-500.0,0.00041096,31]
[400349110,1767409842081,-500.0,0.00041096,31]
[400349111,1767409842090,-500.0,0.00041096,31]
[400349112,1767409842099,-573.15398347,0.00041096,31]
[400349113,1767409842108,-500.0,0.00041096,31]
[400349114,1767409842117,-500.0,0.00041096,31]
[400349115,1767409842127,-250.6621,0.000411,120]
[400349116,1767409842136,-1000.0,0.000412,2]
[400349117,1767409842146,-508.0,0.00041268,15]
[400349118,1767409842155,-600.0,0.0004137,120]
[400349119,1767409842164,-1217.11,0.00041397,30]
[400349120,1767409842174,-150.62,0.00041397,30]
[400349121,1767409842183,-151.0,0.000414,120]
[400349122,1767409842192,-600.0,0.00041413,60]
[400349123,1767409842202,-500.0,0.00041413,60]
[400349124,1767409842211,-1000.0,0.00041413,60]
[400349125,1767409842221,-154.6511149,0.00041444,3]
[400349126,1767409842230,-163.87,0.00041482,120]
[400349127,1767409842239,-152.0,0.000415,120]
[400349128,1767409842249,-1178.85935984,0.0004152,4]
[400349129,1767409842258,-11788.5935984,0.00041534,4]
[400349130,1767409842267,-255555.0,0.00041544,120]
[400349131,1767409842277,-192.56109622,0.00041561,7]
[400349132,1767409842286,-5792.81566624,0.00041571,15]
[400349133,1767409842295,-600.0,0.00041644,120]
[400349134,1767409842304,-252.624269,0.00041659,120]
[400349135,1767409842313,-5004.04964202,0.00041669,3]
[400349136,1767409842323,-154.65111489,0.00041694,4]
[400349137,1767409842332,-1876.82762095,0.00041745,7]
[400349139,1767409842341,-337.0,0.00041747,30]
[400349141,1767409842351,-231.53884909,0.000418,120]
[400349142,1767409842360,-177.94,0.00041837,120]
[400349143,1767409842369,-600.0,0.00041918,120]
[400349144,1767409842378,-521.19,0.00041935,2]
[400349145,1767409842387,-154.65111489,0.00041944,5]
[400349146,1767409842397,-500.0,0.00041953,30]
[400349147,1767409842406,-500.0,0.00041953,30]
[400349148,1767409842416,-570.0,0.00041953,30]
[400349149,1767409842427,-600.0,0.00041961,60]
[400349150,1767409842437,-1000.0,0.00041961,60]
[400349151,1767409842446,-1178.85935984,0.00041992,4]
[400349152,1767409842456,-157.3377926,0.00042,30]
[400349153,1767409842465,-6842.75381681,0.00042002,15]
[400349154,1767409842475,-500.0,0.00042049,7]
[400349155,1767409842485,-500.0,0.00042049,7]
[400349156,1767409842495,-500.0,0.00042049,7]
[400349157,1767409842505,-500.0,0.00042049,7]
[400349158,1767409842514,-517.92,0.00042049,7]
[400349159,1767409842524,-151.0,0.000421,120]
[400349160,1767409842534,-156.72728045,0.00042121,120]
[400349161,1767409842545,-932.34147361,0.00042143,120]
[400349162,1767409842554,-337.0,0.00042178,30]
[400349163,1767409842564,-614.19,0.00042183,30]
[400349164,1767409842573,-600.0,0.00042192,120]
[400349165,1767409842583,-154.65111489,0.00042195,6]
[400349166,1767409842593,-407.85,0.000422,120]
[400349167,1767409842603,-152.0,0.000422,120]
[400349168,1767409842612,-173.93,0.000422,14]
[400349169,1767409842622,-218.0,0.0004224,90]
[400349170,1767409842631,-150.0,0.00042291,2]
[400349171,1767409842641,-613.0,0.00042291,2]
[400349172,1767409842651,-604.45,0.000424,12]
[400349173,1767409842661,-154.65111489,0.00042445,7]
[400349174,1767409842670,-600.0,0.00042466,120]
[400349175,1767409842679,-6842.75381681,0.00042473,15]
[400349176,1767409842689,-600.0,0.00042509,60]
[400349177,1767409842698,-1000.0,0.00042509,60]
[400349178,1767409842708,-500.0,0.00042509,60]
[400349179,1767409842717,-1178.85935984,0.00042536,4]
[400349180,1767409842727,-5482.79,0.00042546,120]
[400349181,1767409842737,-3426.74,0.00042546,30]
[400349182,1767409842746,-151.0,0.0004256,120]
[400349183,1767409842755,-151.0,0.0004256,120]
[400349184,1767409842764,-901.90059,0.0004256,120]
[400349185,1767409842774,-901.9006,0.0004256,120]
[400349186,1767409842784,-901.90059,0.0004256,120]
[400349187,1767409842793,-901.9006,0.0004256,120]
[400349188,1767409842802,-901.90059,0.0004256,120]
[400349189,1767409842812,-337.0,0.00042608,30]
[400349190,1767409842822,-154.65111489,0.00042695,8]
[400349191,1767409842831,-151.0,0.000427,120]
[400349192,1767409842840,-600.0,0.0004274,120]
[400349193,1767409842849,-151.0,0.000428,10]
[400349194,1767409842858,-151.0,0.000428,10]
[400349195,1767409842867,-151.0,0.000428,10]
[400349196,1767409842876,-151.0,0.000428,120]
[400349197,1767409842886,-151.0,0.000428,120]
[400349198,1767409842895,-5000.0,0.000429,120]
[400349199,1767409842904,-150.0,0.000429,120]
[400349200,1767409842913,-961.16139388,0.000429,2]
[400349201,1767409842926,-257.06,0.00042907,120]
[400349202,1767409842935,-961.16139385,0.00042909,2]
[400349203,1767409842945,-1178.85935984,0.00042916,4]
[400349204,1767409842954,-961.16139385,0.00042918,2]
[400349205,1767409842964,-545.05418294,0.00042926,15]
[400349206,1767409842973,-961.16139385,0.00042927,2]
[400349207,1767409842982,-961.16139385,0.00042936,2]
[400349208,1767409842991,-187.43891347,0.00042945,120]
[400349209,1767409843000,-6842.75381681,0.00042945,15]
[400349210,1767409843010,-154.65111489,0.00042945,9]
[400349211,1767409843019,-176.353137,0.00042945,30]
[400349212,1767409843028,-5792.81566624,0.00042945,15]
[400349213,1767409843038,-961.16139385,0.00042945,2]
[400349215,1767409843047,-2346.46608733,0.0004296,120]
[400349216,1767409843056,-150.0,0.00042986,30]
[400349218,1767409843066,-150.0,0.00042986,30]
[400349219,1767409843075,-150.0,0.00042986,30]
[400349221,1767409843086,-150.0,0.00042986,30]
[400349223,1767409843095,-150.0,0.00042986,30]
[400349224,1767409843104,-150.0,0.00042986,30]
[400349225,1767409843114,-150.0,0.00042986,30]
[400349226,1767409843123,-150.0,0.00042986,30]
[400349228,1767409843132,-151.11589432,0.00042986,30]
[400349229,1767409843141,-150.0,0.00042986,30]
[400349230,1767409843151,-271.09951401,0.00042986,30]
[400349231,1767409843159,-150.0,0.00042986,30]
[400349232,1767409843169,-168.43746667,0.00042986,30]
[400349233,1767409843178,-2357.71871968,0.0004299,4]
[400349234,1767409843189,-160.71,0.0004299,30]
[400349235,1767409843198,-901.90059,0.0004299,120]
[400349236,1767409843208,-901.9006,0.0004299,120]
[400349237,1767409843218,-901.9006,0.0004299,120]
[400349238,1767409843227,-901.90059,0.0004299,120]
[400349239,1767409843236,-901.90059,0.0004299,120]
[400349240,1767409843246,-3536.57807952,0.0004299,4]
[400349241,1767409843255,-192.56109622,0.0004299,7]
[400349242,1767409843264,-150.0,0.00042991,30]
[400349243,1767409843273,-150.0,0.00042992,30]
[400349244,1767409843283,-150.0,0.00042995,30]
[400349245,1767409843292,-150.0,0.00042998,30]
[400349246,1767409843302,-300.0,0.00042999,30]
[400349247,1767409843311,-666.0,0.00042999,30]
[400349248,1767409843320,-333.7439573,0.00042999,30]
[400349249,1767409843329,-999.0,0.00042999,120]
[400349250,1767409843339,-11445.1998599,0.00043,30]
[400349251,1767409843475,-3791.02958478,0.00043,30]
[400349252,1767409843487,-305.2917785,0.00043,30]
[400349253,1767409843498,-1640.18110107,0.00043,30]
[400349254,1767409843509,-903.28,0.00043,30]
[400349255,1767409844148,-33.19077468,0.00030795,2]
[400349258,1767409845568,-140.41088663,0.00030795,2]
[400349259,1767409845579,-300.00000004,0.00035616,7]
[400349260,1767409845588,-963.60480333,0.00043,30]
[400349261,1767409845622,-5928.89057711,0.00043,30]
[400349262,1767409845729,-426.04450591,0.00043,30]
[400349266,1767409923732,160.49890889,0.00016973,2]
[400349267,1767409954283,508.00003,0.00029877,2]
[400349268,1767410013887,508.0,0.00029877,2]
[400349269,1767410042104,9304.6579602,0.0003,2]
[400349270,1767410093856,265.73,0.00013699,2]
[400349271,1767410094061,265.73,0.00020187,2]
[400349272,1767410094257,265.73,0.00026676,2]
[400349273,1767410164698,508.0,0.00029877,2]
[400349276,1767410524944,508.0,0.00029877,2]
[400349278,1767410741675,301.3284705,0.0002,30]
[400349279,1767410769598,12404.32463041,0.0003,5]
[400349280,1767410769623,16151.13305708,0.0003,5]
[400349281,1767410814064,2577.24,0.000162,5]
[400349282,1767410825128,1961.44842889,0.00015,2]
[400349283,1767410859368,1374.8215172,0.0002,5]
[400349284,1767410859395,25000.0,0.0002,5]
[400349285,1767410859422,24849.0,0.0002,5]
[400349286,1767410859448,25000.0,0.0002,5]
[400349287,1767410859482,25000.0,0.0002,5]
[400349288,1767410859512,25000.0,0.0002,5]
[400349289,1767410859538,24849.0,0.0002,5]
[400349290,1767410859565,25000.0,0.0002,5]
[400349291,1767410859589,25000.0,0.0002,5]
[400349292,1767410859615,25000.0,0.0002,5]
[400349293,1767410859654,6690.6314741,0.0002,5]
[400349294,1767410859680,25000.0,0.0002,5]
[400349295,1767410859707,25000.0,0.0002,5]
[400349296,1767410859734,24846.55,0.0002,5]
[400349297,1767410859760,25000.0,0.0002,5]
[400349298,1767410859785,24846.55,0.0002,5]
[400349299,1767410859811,21160.13083326,0.0002,5]
[400349300,1767410894924,150.23,0.00019299,2]
[400349305,1767411031663,-508.0,0.00029877,2]
[400349307,1767411031673,-1200.0,0.00029999,2]
[400349308,1767411031684,-300.0,0.00029999,2]
[400349310,1767411031694,-3187.18357432,0.0003,5]
[400349320,1767411037869,-3816.8,0.0003,5]
[400349321,1767411037881,-1082.856,0.0003,5]
[400349322,1767411038030,-2675.05133441,0.0003,5]
[400349324,1767411038044,-1575.97488614,0.0003,5]
[400349325,1767411038057,-21918.08337215,0.0003,5]
[400349466,1767411039809,-52973.36155321,0.0003,5]
[400349467,1767411039819,-16409.30735498,0.0003,5]
[400349469,1767411039829,-350.12220687,0.00030573,2]
[400349471,1767411039839,-22929.6211,0.00030574,2]
[400349472,1767411039849,-1000.0,0.00030574,2]
[400349475,1767411039859,-1326.0,0.0003247,3]
[400349476,1767411039869,-298.41793724,0.00033139,2]
[400349478,1767411039878,-265.73,0.00033165,2]
[400349480,1767411039888,-508.0,0.00033218,5]
[400349482,1767411039898,-163.95,0.00035,2]
[400349485,1767411039907,-170.41110007,0.0003528,2]
[400349487,1767411039917,-639.699,0.00035295,41]
[400349489,1767411039927,-180.8190478,0.00035604,2]
[400349491,1767411039936,-1250.55,0.00036026,2]
[400349493,1767411039952,-2896.40783312,0.00036028,2]
[400349495,1767411039964,-3653.11,0.00036071,2]
[400349498,1767411039975,-662.68,0.00036128,2]
[400349500,1767411039985,-150.99,0.00036128,2]
[400349502,1767411039995,-2363.85,0.00036128,10]
[400349504,1767411040004,-12661.36,0.00036128,2]
[400349506,1767411040015,-3077.88,0.00036128,2]
[400349508,1767411040024,-1674.62,0.00036139,2]
[400349510,1767411040035,-732.24,0.00036245,2]
[400349512,1767411040045,-5000.0,0.00036335,2]
[400349514,1767411040055,-2501.66,0.00036523,2]
[400349516,1767411040065,-508.0,0.0003656,9]
[400349518,1767411040076,-5000.0,0.00036628,2]
[400349520,1767411040087,-2896.40783312,0.00036796,2]
[400349522,1767411040098,-5000.0,0.00036908,2]
[400349524,1767411040108,-4496.26,0.00036915,2]
[400349526,1767411040118,-2558.75,0.00036993,2]
[400349528,1767411040128,-187.43891347,0.000372,120]
[400349530,1767411040138,-1000.0,0.00037461,2]
[400349532,1767411040148,-2896.40783312,0.00037565,2]
[400349535,1767411040158,-200.0,0.00037719,2]
[400349537,1767411040169,-1003.19435973,0.000378,2]
[400349539,1767411040179,-500.0,0.00037808,2]
[400349541,1767411040190,-3600.77,0.00038163,2]
[400349543,1767411040199,-152.1213374,0.00038186,30]
[400349545,1767411040209,-2896.40783312,0.00038333,2]
[400349547,1767411040218,-888.75,0.00038546,2]
[400349549,1767411040228,-343.42531094,0.00038737,2]
[400349551,1767411040237,-303.88896894,0.00038737,2]
[400349553,1767411040247,-364.51871262,0.00038737,2]
[400349555,1767411040256,-300.0,0.00038737,2]
[400349556,1767411040266,-300.0,0.00038737,2]
[400349558,1767411040276,-303.51349633,0.00038737,2]
[400349560,1767411040286,-578.10034199,0.00038737,2]
[400349562,1767411040295,-616.00617618,0.00038737,2]
[400349564,1767411040305,-304.68719061,0.00038737,2]
[400349567,1767411040319,-383.44466145,0.00038737,2]
[400349569,1767411040329,-303.88896894,0.00038737,2]
[400349571,1767411040339,-364.51871262,0.00038737,2]
[400349573,1767411040348,-300.0,0.00038737,2]
[400349575,1767411040358,-537.86571605,0.00038737,2]
[400349577,1767411040368,-303.51349633,0.00038737,2]
[400349579,1767411040378,-578.10034199,0.00038737,2]
[400349581,1767411040388,-616.00617618,0.00038737,2]
[400349583,1767411040402,-304.68719061,0.00038737,2]
[400349585,1767411040412,-431.027,0.00038888,30]
[400349587,1767411040422,-150.8440065,0.000389,30]
[400349589,1767411040432,-165.65740944,0.00039,120]
[400349592,1767411040442,-2896.40783312,0.00039102,2]
[400349593,1767411040452,-1265.0,0.00039286,2]
[400349596,1767411040462,-433.0,0.00039286,2]
[400349598,1767411040471,-915.998,0.00039286,2]
[400349600,1767411040481,-2434.0,0.00039286,2]
[400349601,1767411040491,-615.062,0.00039286,2]
[400349602,1767411040501,-4814.0,0.00039286,2]
[400349603,1767411040514,-265.73,0.00039654,2]
[400349604,1767411040524,-2896.40783312,0.0003987,15]
[400349605,1767411040534,-508.0,0.00039901,13]
[400349606,1767411040544,-575.84,0.0004,120]
[400349607,1767411040555,-291.07,0.0004,120]
[400349608,1767411040565,-151.0,0.0004,120]
[400349609,1767411040575,-152.0,0.0004,120]
[400349610,1767411040587,-150.27027551,0.0004,120]
[400349611,1767411040597,-4247.83577036,0.0004,120]
[400349612,1767411040607,-160.73516719,0.0004,2]
[400349613,1767411040618,-2896.40783312,0.00040639,15]
[400349614,1767411040628,-151.0,0.000407,120]
[400349615,1767411040638,-152.0,0.000407,120]
[400349616,1767411040649,-6106.75134539,0.00040811,5]
[400349617,1767411040658,-469.01,0.00040908,2]
[400349618,1767411040668,-1055.65988892,0.00040995,30]
[400349619,1767411040679,-174.0,0.00041,90]
[400349620,1767411040693,-154.93516035,0.00041,30]
[400349621,1767411040703,-232.0,0.00041096,120]
[400349622,1767411040713,-307.35709776,0.00041096,2]
[400349623,1767411040722,-2295.0,0.00041096,60]
[400349624,1767411040732,-491.23253404,0.00041096,54]
[400349625,1767411040743,-500.0,0.00041096,31]
[400349626,1767411040752,-500.0,0.00041096,31]
[400349627,1767411040762,-500.0,0.00041096,31]
[400349628,1767411040772,-500.0,0.00041096,31]
[400349629,1767411040782,-500.0,0.00041096,31]
[400349630,1767411040792,-500.0,0.00041096,31]
[400349631,1767411040803,-500.0,0.00041096,31]
[400349632,1767411040813,-500.0,0.00041096,31]
[400349633,1767411040822,-500.0,0.00041096,31]
[400349634,1767411040833,-500.0,0.00041096,31]
[400349635,1767411040842,-500.0,0.00041096,31]
[400349636,1767411040852,-500.0,0.00041096,31]
[400349637,1767411040861,-500.0,0.00041096,31]
[400349638,1767411040871,-500.0,0.00041096,31]
[400349639,1767411040881,-500.0,0.00041096,31]
[400349640,1767411040891,-500.0,0.00041096,31]
[400349641,1767411040901,-500.0,0.00041096,31]
[400349642,1767411040912,-500.0,0.00041096,31]
[400349643,1767411040922,-500.0,0.00041096,31]
[400349644,1767411040932,-500.0,0.00041096,31]
[400349645,1767411040942,-500.0,0.00041096,31]
[400349646,1767411040952,-500.0,0.00041096,31]
[400349647,1767411040962,-230.23959179,0.00041096,31]
[400349648,1767411040972,-500.0,0.00041096,31]
[400349649,1767411040982,-500.0,0.00041096,31]
[400349650,1767411040992,-500.0,0.00041096,31]
[400349651,1767411041002,-500.0,0.00041096,31]
[400349652,1767411041012,-500.0,0.00041096,31]
[400349653,1767411041022,-500.0,0.00041096,31]
[400349654,1767411041032,-500.0,0.00041096,31]
[400349655,1767411041045,-500.0,0.00041096,31]
[400349656,1767411041055,-500.0,0.00041096,31]
[400349657,1767411041065,-500.0,0.00041096,31]
[400349658,1767411041075,-500.0,0.00041096,31]
[400349659,1767411041085,-500.0,0.00041096,31]
[400349660,1767411041095,-500.0,0.00041096,31]
[400349661,1767411041104,-500.0,0.00041096,31]
[400349662,1767411041114,-500.0,0.00041096,31]
[400349663,1767411041126,-500.0,0.00041096,31]
[400349664,1767411041136,-500.0,0.00041096,31]
[400349665,1767411041146,-500.0,0.00041096,31]
[400349666,1767411041156,-500.0,0.00041096,31]
[400349667,1767411041165,-500.0,0.00041096,31]
[400349668,1767411041176,-500.0,0.00041096,31]
[400349669,1767411041186,-500.0,0.00041096,31]
[400349670,1767411041196,-500.0,0.00041096,31]
[400349671,1767411041205,-500.0,0.00041096,31]
[400349672,1767411041215,-500.0,0.00041096,31]
[400349673,1767411041225,-500.0,0.00041096,31]
[400349674,1767411041239,-500.0,0.00041096,31]
[400349675,1767411041248,-500.0,0.00041096,31]
[400349676,1767411041258,-173.02395918,0.00041096,31]
[400349677,1767411041268,-500.0,0.00041096,31]
[400349678,1767411041278,-500.0,0.00041096,31]
[400349679,1767411041288,-500.0,0.00041096,31]
[400349680,1767411041299,-500.0,0.00041096,31]
[400349681,1767411041309,-500.0,0.00041096,31]
[400349682,1767411041319,-500.0,0.00041096,31]
[400349683,1767411041328,-500.0,0.00041096,31]
[400349684,1767411041338,-500.0,0.00041096,31]
[400349685,1767411041347,-500.0,0.00041096,31]
[400349686,1767411041357,-500.0,0.00041096,31]
[400349687,1767411041367,-500.0,0.00041096,31]
[400349688,1767411041377,-500.0,0.00041096,31]
[400349689,1767411041387,-500.0,0.00041096,31]
[400349690,1767411041397,-500.0,0.00041096,31]
[400349691,1767411041407,-500.0,0.00041096,31]
[400349692,1767411041416,-500.0,0.00041096,31]
[400349693,1767411041429,-500.0,0.00041096,31]
[400349694,1767411041439,-500.0,0.00041096,31]
[400349695,1767411041448,-500.0,0.00041096,31]
[400349696,1767411041459,-500.0,0.00041096,31]
[400349697,1767411041469,-500.0,0.00041096,31]
[400349698,1767411041479,-500.0,0.00041096,31]
[400349699,1767411041489,-500.0,0.00041096,31]
[400349700,1767411041499,-500.0,0.00041096,31]
[400349701,1767411041510,-500.0,0.00041096,31]
[400349702,1767411041520,-500.0,0.00041096,31]
[400349703,1767411041530,-500.0,0.00041096,31]
[400349704,1767411041540,-500.0,0.00041096,31]
[400349705,1767411041550,-151.0,0.000414,120]
[400349706,1767411041560,-2896.40783312,0.00041407,15]
[400349707,1767411041569,-500.0,0.00041413,60]
[400349708,1767411041580,-600.0,0.00041413,60]
[400349709,1767411041590,-1000.0,0.00041413,60]
[400349710,1767411041600,-152.0,0.000415,120]
[400349711,1767411041610,-5004.04964202,0.00041668,4]
[400349712,1767411041620,-1876.82762095,0.00041706,7]
[400349713,1767411041630,-231.53884909,0.000418,120]
[400349714,1767411041640,-500.0,0.00041953,30]
[400349715,1767411041650,-500.0,0.00041953,30]
[400349716,1767411041660,-570.0,0.00041953,30]
[400349717,1767411041670,-600.0,0.00041961,60]
[400349718,1767411041680,-1000.0,0.00041961,60]
[400349719,1767411041690,-606.0,0.00042,120]
[400349720,1767411041700,-2500.0,0.0004204,2]
[400349721,1767411041712,-500.0,0.00042045,7]
[400349722,1767411041721,-500.0,0.00042045,7]
[400349723,1767411041731,-500.0,0.00042045,7]
[400349724,1767411041742,-500.0,0.00042045,7]
[400349725,1767411041751,-517.92,0.00042045,7]
[400349726,1767411041762,-482.1,0.00042082,30]
[400349727,1767411041773,-660.63,0.00042082,30]
[400349728,1767411041783,-482.1,0.00042082,30]
[400349729,1767411041793,-660.63,0.00042082,30]
[400349730,1767411042081,-482.1,0.00042082,30]
[400349731,1767411042093,-660.63,0.00042082,30]
[400349732,1767411042103,-169.91,0.00042082,30]
[400349733,1767411042115,-660.63,0.00042082,30]
[400349734,1767411042125,-660.63,0.00042082,30]
[400349735,1767411042135,-151.0,0.000421,120]
[400349736,1767411042145,-156.72728045,0.00042121,120]
[400349737,1767411042155,-1604.36410467,0.0004213,4]
[400349738,1767411042165,-1045.75609431,0.0004214,50]
[400349739,1767411042175,-1102.52890356,0.0004214,50]
[400349740,1767411042185,-1089.63838338,0.0004214,50]
[400349741,1767411042195,-1095.78544673,0.0004214,50]
[400349742,1767411042205,-1112.30650036,0.0004214,50]
[400349743,1767411042215,-1000.91537282,0.0004214,50]
[400349744,1767411042225,-1081.60906649,0.0004214,50]
[400349745,1767411042235,-1063.59926491,0.0004214,50]
[400349746,1767411042244,-1002.60265474,0.0004214,50]
[400349747,1767411042254,-1083.93148292,0.0004214,50]
[400349748,1767411042263,-1020.99351626,0.0004214,50]
[400349749,1767411042273,-1131.54482629,0.0004214,50]
[400349750,1767411042288,-1507.06329324,0.0004214,50]
[400349751,1767411042298,-690.91,0.0004214,30]
[400349752,1767411042308,-932.34147361,0.00042143,120]
[400349753,1767411042318,-2896.40783312,0.00042176,15]
[400349754,1767411042328,-614.19,0.00042183,30]
[400349755,1767411042338,-407.85,0.000422,120]
[400349756,1767411042348,-152.0,0.000422,120]
[400349757,1767411042358,-179.87,0.00042219,30]
[400349758,1767411042369,-578.2,0.00042219,30]
[400349759,1767411042379,-1217.11,0.00042219,30]
[400349760,1767411042389,-171.11,0.00042219,30]
[400349761,1767411042400,-301.63,0.00042219,30]
[400349762,1767411042410,-465.99,0.00042219,30]
[400349763,1767411042419,-211.23,0.00042219,30]
[400349764,1767411042429,-305.56,0.00042219,30]
[400349765,1767411042439,-178.84,0.00042219,30]
[400349766,1767411042449,-1249.76,0.00042219,30]
[400349767,1767411042459,-555.41,0.00042219,30]
[400349768,1767411042469,-150.0,0.00042219,30]
[400349769,1767411042478,-465.99,0.00042219,30]